bitfinex/quotes_BTCUSD_20250618
["timestamp","ask_amount","ask_price","bid_price","bid_amount"]
[1750228392760,10.53669495,105380.0,105370.0,0.001]
[1750228392993,10.53669495,105380.0,105370.0,0.19452]
[1750228393697,10.51231731,105380.0,105370.0,0.19452]
[1750228395447,0.36846955,105370.0,105360.0,0.46523887]
[1750228395661,0.36846955,105370.0,105360.0,0.65875887]
[1750228395662,10.23563826,105370.0,105360.0,0.65875887]
[1750228396311,10.24512835,105370.0,105360.0,0.63977788]
[1750228397115,10.23563817,105370.0,105360.0,0.63977788]
[1750228397546,10.23563817,105370.0,105360.0,0.44725788]
[1750228397756,10.24163817,105370.0,105360.0,0.64077788]
[1750228398848,10.24163817,105370.0,105360.0,0.44725788]
[1750228399044,10.25112835,105370.0,105360.0,0.64077788]
[1750228399457,10.24163817,105370.0,105360.0,0.64077788]
[1750228400066,10.25112835,105370.0,105360.0,0.64077788]
[1750228400495,10.24163817,105370.0,105360.0,0.64077788]
[1750228400717,10.23214808,105370.0,105360.0,0.67047788]
[1750228400923,10.24163808,105370.0,105360.0,0.67047788]
[1750228401129,10.21894337,105370.0,105360.0,0.67047788]
[1750228401339,10.24159608,105370.0,105360.0,0.67047788]
[1750228401735,10.24159436,105370.0,105360.0,0.67047788]
[1750228402139,10.20945337,105370.0,105360.0,0.67047788]
[1750228402287,10.20945337,105370.0,105360.0,0.47695788]
[1750228402489,10.22843337,105370.0,105360.0,0.67047788]
[1750228403111,10.25108293,105370.0,105360.0,0.67047788]
[1750228403309,10.21894346,105370.0,105360.0,0.67047788]
[1750228404415,10.22843364,105370.0,105360.0,0.64077788]
[1750228405576,10.22843364,105370.0,105360.0,0.46783644]
[1750228405577,10.42773134,105370.0,105360.0,0.46783644]
[1750228405796,10.46735197,105370.0,105360.0,0.63128743]
[1750228406493,10.46735197,105370.0,105360.0,0.43776743]
[1750228406736,10.46735197,105370.0,105360.0,0.49630914]
[1750228406960,10.46735197,105370.0,105360.0,0.65026914]
[1750228407187,10.45786188,105370.0,105360.0,0.64077833]
[1750228407410,10.4203717,105370.0,105360.0,0.64077824]
[1750228407863,10.44302169,105370.0,105360.0,0.65026896]
[1750228408306,10.41242169,105370.0,105360.0,0.65026896]
[1750228409819,10.42191178,105370.0,105360.0,0.65026896]
[1750228410081,10.24159408,105370.0,105360.0,0.65975959]
[1750228410977,10.25108435,105370.0,105360.0,0.65975959]
[1750228411645,10.24159345,105370.0,105360.0,0.65975959]
[1750228411838,10.25108363,105370.0,105360.0,0.65975959]
[1750228412611,10.21312399,105370.0,105360.0,0.68925959]
[1750228412854,10.19996364,105370.0,105360.0,0.71965959]
[1750228413058,10.19996355,105370.0,105360.0,0.71965959]
[1750228413275,10.20945319,105370.0,105360.0,0.71965959]
[1750228413495,10.19996355,105370.0,105360.0,0.71965959]
[1750228413712,10.190474,105370.0,105360.0,0.71965959]
[1750228413933,10.19996355,105370.0,105360.0,0.71965959]
[1750228415768,10.21313756,105370.0,105360.0,0.71965959]
[1750228419105,10.2226272,105370.0,105360.0,0.71965959]
[1750228419630,10.24160693,105370.0,105360.0,0.71965959]
[1750228419831,10.25109711,105370.0,105360.0,0.71965959]
[1750228420897,10.24160693,105370.0,105360.0,0.71965959]
[1750228421540,10.24160684,105370.0,105360.0,0.71965959]
[1750228421761,10.21313756,105370.0,105360.0,0.71965959]
[1750228421957,0.006,105370.0,105360.0,0.8304422]
[1750228430603,0.006,105370.0,105360.0,0.6024822]
[1750228432483,0.006,105370.0,105360.0,0.89244727]
[1750228436109,0.006,105370.0,105360.0,0.73848727]
[1750228436389,0.006,105370.0,105360.0,0.89240727]
[1750228449008,0.006,105370.0,105360.0,0.69892727]
[1750228449225,0.006,105370.0,105360.0,0.89240727]
[1750228452571,0.006,105370.0,105360.0,0.69892727]
[1750228452773,0.006,105370.0,105360.0,0.89240727]
[1750228455242,9.97312326,105390.0,105380.0,0.21825663]
[1750228455443,9.97312326,105390.0,105380.0,0.41189663]
[1750228456307,9.87667019,105390.0,105380.0,0.41189663]
[1750228456518,9.91462317,105390.0,105380.0,0.41189663]
[1750228456732,9.92362317,105390.0,105380.0,0.41389663]
[1750228457147,10.26362317,105390.0,105380.0,0.41389663]
[1750228457662,10.26662317,105390.0,105380.0,0.41389663]
[1750228461331,10.26662317,105390.0,105380.0,0.41141663]
[1750228462629,10.2571347,105390.0,105380.0,0.41141663]
[1750228463964,10.26662281,105390.0,105380.0,0.46871663]
[1750228464429,10.25713443,105390.0,105380.0,0.46871663]
[1750228464869,10.26662281,105390.0,105380.0,0.46871663]
[1750228465098,5.146474,105390.0,105380.0,0.46871663]
[1750228465321,5.146474,105390.0,105380.0,0.57949924]
[1750228465557,4.806474,105390.0,105380.0,0.57949924]
[1750228465993,5.146474,105390.0,105380.0,0.57949924]
[1750228466427,0.352,105390.0,105380.0,0.57949924]
[1750228466671,0.343,105390.0,105380.0,0.57745924]
[1750228466885,0.346,105390.0,105380.0,0.57845924]
[1750228467089,0.343,105390.0,105380.0,0.57845924]
[1750228470813,0.343,105390.0,105380.0,0.86842431]
[1750228482498,0.343,105390.0,105380.0,0.67482431]
[1750228482721,0.343,105390.0,105380.0,0.86830431]
[1750228485415,0.343,105390.0,105380.0,0.67482431]
[1750228485623,0.343,105390.0,105380.0,0.86830431]
[1750228496619,0.343,105390.0,105380.0,0.86822431]
[1750228512407,0.343,105390.0,105380.0,0.67482431]
[1750228512596,0.343,105390.0,105380.0,0.86822431]
[1750228526407,0.343,105390.0,105380.0,0.67482431]
[1750228526610,0.343,105390.0,105380.0,0.86862431]
[1750228527242,0.343,105390.0,105380.0,0.86778431]
[1750228530485,0.343,105390.0,105380.0,0.71366431]
[1750228530702,0.343,105390.0,105380.0,0.86774431]
[1750228532984,0.343,105390.0,105380.0,0.86806431]
[1750228533595,10.49171955,105390.0,105380.0,0.001]
[1750228533805,10.51441023,105390.0,105380.0,0.3945587]
[1750228534022,10.50672185,105390.0,105380.0,0.40404798]
[1750228534266,10.50672185,105390.0,105380.0,0.21925708]
[1750228534631,10.50672185,105390.0,105380.0,0.42306609]
[1750228535071,10.50672185,105390.0,105380.0,0.43255501]
[1750228535473,10.50672185,105390.0,105380.0,0.27791501]
[1750228535692,10.50672185,105390.0,105380.0,0.43259501]
[1750228536885,10.50672185,105390.0,105380.0,0.42310609]
[1750228537082,10.60287107,105390.0,105380.0,0.2399587]
[1750228537452,10.60287107,105390.0,105380.0,0.41365717]
[1750228537628,10.60287107,105390.0,105380.0,0.42314663]
[1750228537829,10.49723356,105390.0,105380.0,0.41365744]
[1750228538376,10.47454288,105390.0,105380.0,0.41365744]
[1750228539405,10.47454288,105390.0,105380.0,0.42314663]
[1750228539999,10.47454288,105390.0,105380.0,0.41365744]
[1750228540855,10.47454288,105390.0,105380.0,0.40416816]
[1750228542654,10.47454288,105390.0,105380.0,0.41357735]
[1750228543488,10.47454288,105390.0,105380.0,0.42306645]
[1750228544118,10.47454288,105390.0,105380.0,0.41357735]
[1750228544374,10.46505432,105390.0,105380.0,0.04068]
[1750228544577,10.46505432,105390.0,105380.0,0.19532]
[1750228546472,10.6574453,105390.0,105380.0,0.001]
[1750228546671,10.68006999,105390.0,105380.0,0.001]
[1750228547306,10.58392077,105390.0,105380.0,0.001]
[1750228555728,10.25096409,105370.0,105360.0,0.00047445]
[1750228555945,0.00949144,105350.0,105340.0,0.52366658]
[1750228556156,4.82294913,105350.0,105340.0,0.41325665]
[1750228556362,4.85146813,105350.0,105340.0,0.41325665]
[1750228556578,4.85146813,105350.0,105340.0,0.25881665]
[1750228556808,4.8609602,105350.0,105340.0,0.45321665]
[1750228557912,5.05080357,105350.0,105340.0,0.44472431]
[1750228558555,5.04131213,105350.0,105340.0,0.44472431]
[1750228558973,5.04231213,105350.0,105340.0,0.44672431]
[1750228559445,10.16947766,105350.0,105340.0,0.24221873]
[1750228559667,10.07332844,105350.0,105340.0,0.39669873]
[1750228559882,10.10462844,105350.0,105340.0,0.39669873]
[1750228560105,10.46483637,105350.0,105340.0,0.04288]
[1750228560823,10.56107813,105350.0,105340.0,0.003]
[1750228561046,10.67981259,105350.0,105340.0,0.003]
[1750228561263,10.65722735,105350.0,105340.0,0.002]
[1750228561482,10.67979921,105350.0,105340.0,0.002]
[1750228562365,10.58364999,105350.0,105340.0,0.002]
[1750228562639,10.38382847,105340.0,105330.0,0.18987847]
[1750228562850,9.86346104,105330.0,105320.0,0.48401423]
[1750228563574,9.86346104,105330.0,105320.0,0.47452017]
[1750228563575,9.87295483,105330.0,105320.0,0.47452017]
[1750228563876,10.06283479,105330.0,105320.0,0.43438692]
[1750228564107,10.06330912,105330.0,105320.0,0.43538692]
[1750228564338,10.06330912,105330.0,105320.0,0.47528143]
[1750228564573,10.06430912,105330.0,105320.0,0.47928143]
[1750228564788,10.06430912,105330.0,105320.0,0.48877576]
[1750228565010,10.07380309,105330.0,105320.0,0.47928143]
[1750228565454,10.50995231,105330.0,105320.0,0.31506692]
[1750228565668,10.50045861,105330.0,105320.0,0.43938692]
[1750228565942,10.40430939,105330.0,105320.0,0.40868692]
[1750228566199,10.43283539,105330.0,105320.0,0.40868692]
[1750228566480,10.43283539,105330.0,105320.0,0.25376692]
[1750228566718,10.43283539,105330.0,105320.0,0.41818143]
[1750228567393,10.43283539,105330.0,105320.0,0.44798143]
[1750228568055,10.43283539,105330.0,105320.0,0.45747585]
[1750228568548,10.43283539,105330.0,105320.0,0.27407232]
[1750228568764,10.4233416,105330.0,105320.0,0.42895232]
[1750228568976,10.4233416,105330.0,105320.0,0.4384471]
[1750228570242,10.41384772,105330.0,105320.0,0.19976]
[1750228572155,10.6651387,105330.0,105320.0,0.005]
[1750228572373,10.72386948,105330.0,105320.0,0.005]
[1750228572589,10.74638447,105330.0,105320.0,0.005]
[1750228573020,10.71668447,105330.0,105320.0,0.004]
[1750228573236,5.14396905,105310.0,105300.0,0.71110241]
[1750228573676,5.15346437,105310.0,105300.0,0.71110241]
[1750228573893,5.14396905,105310.0,105300.0,0.71110241]
[1750228574102,5.14396905,105310.0,105300.0,0.51630241]
[1750228574313,5.14396905,105310.0,105300.0,0.71110241]
[1750228574541,5.134474,105310.0,105300.0,1.07188502]
[1750228574808,0.0329548,105330.0,105320.0,0.27758098]
[1750228575024,10.23641665,105330.0,105320.0,0.4419154]
[1750228575239,9.88292268,105330.0,105320.0,0.4419154]
[1750228575445,10.22292268,105330.0,105320.0,0.4419154]
[1750228575876,10.23241665,105330.0,105320.0,0.4419154]
[1750228576352,10.23241665,105330.0,105320.0,0.43242116]
[1750228576686,10.23541665,105330.0,105320.0,0.43342116]
[1750228576903,10.41580282,105330.0,105320.0,0.43342116]
[1750228577116,10.41580282,105330.0,105320.0,0.44291549]
[1750228577428,10.41780282,105330.0,105320.0,0.44291549]
[1750228578795,10.2279234,105330.0,105320.0,0.44291549]
[1750228579430,10.2279234,105330.0,105320.0,0.45240973]
[1750228579640,10.21842943,105330.0,105320.0,0.45240973]
[1750228579837,10.2089351,105330.0,105320.0,0.45240973]
[1750228580287,10.2184288,105330.0,105320.0,0.45240973]
[1750228580475,10.2089351,105330.0,105320.0,0.45240973]
[1750228580642,10.21842871,105330.0,105320.0,0.45240973]
[1750228581280,5.13994833,105330.0,105320.0,0.45240973]
[1750228581652,0.34547433,105330.0,105320.0,0.56319234]
[1750228581858,0.34547433,105330.0,105320.0,1.10315741]
[1750228584827,0.34547433,105330.0,105320.0,0.73991149]
[1750228585034,0.35496767,105330.0,105320.0,0.70228973]
[1750228585450,0.35496758,105330.0,105320.0,0.70228973]
[1750228585648,0.37759003,105330.0,105320.0,0.70228973]
[1750228585926,0.38708337,105330.0,105320.0,0.70228973]
[1750228587046,0.37759003,105330.0,105320.0,0.70228973]
[1750228587352,0.37759003,105330.0,105320.0,0.74224973]
[1750228589274,0.38708346,105330.0,105320.0,0.74220973]
[1750228589480,0.38708337,105330.0,105320.0,0.74220973]
[1750228590591,0.3965768,105330.0,105320.0,0.74220973]
[1750228591010,0.40607041,105330.0,105320.0,0.74220973]
[1750228591271,0.3965768,105330.0,105320.0,0.74220973]
[1750228591698,0.38344796,105330.0,105320.0,0.74220973]
[1750228591920,0.37395435,105330.0,105320.0,0.74220973]
[1750228592125,0.40609174,105330.0,105320.0,0.74220973]
[1750228592770,0.39659822,105330.0,105320.0,0.74220973]
[1750228592988,0.39659822,105330.0,105320.0,0.51908674]
[1750228593216,10.21259266,105330.0,105320.0,0.48065531]
[1750228593427,0.34547433,105330.0,105320.0,0.84143792]
[1750228594301,0.34347433,105330.0,105320.0,0.84143792]
[1750228594941,0.34047433,105330.0,105320.0,0.84043792]
[1750228595355,0.34147433,105330.0,105320.0,0.84143792]
[1750228595560,0.34047433,105330.0,105320.0,0.84043792]
[1750228595973,0.34147433,105330.0,105320.0,0.84443792]
[1750228596822,0.34147433,105330.0,105320.0,0.84643792]
[1750228597696,0.34147433,105330.0,105320.0,0.59659792]
[1750228598121,0.34147433,105330.0,105320.0,0.84659792]
[1750228598299,0.001,105330.0,105320.0,0.59659792]
[1750228598517,0.001,105330.0,105320.0,0.84659792]
[1750228603828,0.001,105330.0,105320.0,1.13656299]
[1750228608295,0.001821,105330.0,105320.0,1.13656299]
[1750228610876,0.001,105330.0,105320.0,1.13574199]
[1750228616540,0.001,105330.0,105320.0,1.13550199]
[1750228632577,0.001,105330.0,105320.0,1.13522199]
[1750228646725,0.001,105330.0,105320.0,1.13534199]
[1750228650294,0.341,105330.0,105320.0,1.13534199]
[1750228651698,0.341,105330.0,105320.0,0.95222199]
[1750228651912,0.42978011,105330.0,105320.0,0.52369607]
[1750228652122,0.42978011,105330.0,105320.0,0.53823692]
[1750228652327,0.42028659,105330.0,105320.0,0.53823692]
[1750228652785,0.43927363,105330.0,105320.0,0.53827692]
[1750228653009,0.43927363,105330.0,105320.0,0.42749431]
[1750228653445,0.44876742,105330.0,105320.0,0.42749431]
[1750228653648,0.43927363,105330.0,105320.0,0.42749431]
[1750228653891,0.44876733,105330.0,105320.0,0.42749431]
[1750228654094,0.43927408,105330.0,105320.0,0.42749431]
[1750228654525,5.41413452,105330.0,105320.0,0.25472683]
[1750228654745,5.41413452,105330.0,105320.0,0.41878134]
[1750228654958,5.41413452,105330.0,105320.0,0.42827576]
[1750228655388,5.41413452,105330.0,105320.0,0.43777009]
[1750228655630,5.41413452,105330.0,105320.0,0.40928674]
[1750228655856,5.41413452,105330.0,105320.0,0.23387549]
[1750228656095,5.41413452,105330.0,105320.0,0.20044]
[1750228656096,5.40464091,105330.0,105320.0,0.20044]
[1750228657263,5.40328091,105330.0,105320.0,0.20044]
[1750228658738,5.40328091,105330.0,105320.0,0.20993487]
[1750228662138,5.40328091,105330.0,105320.0,0.4093271]
[1750228662555,5.40328091,105330.0,105320.0,0.4092471]
[1750228663336,5.39378721,105330.0,105320.0,0.4092471]
[1750228663765,5.39378721,105330.0,105320.0,0.39975232]
[1750228664678,5.39378721,105330.0,105320.0,0.4092471]
[1750228665130,5.38429342,105330.0,105320.0,0.20985487]
[1750228666498,5.38429342,105330.0,105320.0,0.41874179]
[1750228667375,5.22744402,105330.0,105320.0,0.41874179]
[1750228668646,4.98675785,105330.0,105320.0,0.46803027]
[1750228668856,4.99625137,105330.0,105320.0,0.49873027]
[1750228669294,5.00574507,105330.0,105320.0,0.46843027]
[1750228669512,4.79822147,105330.0,105320.0,0.46843027]
[1750228669731,9.83872777,105330.0,105320.0,0.46843027]
[1750228669955,4.80771544,105330.0,105320.0,0.43773027]
[1750228670216,4.769741,105330.0,105320.0,0.85841288]
[1750228670400,0.1443709,105340.0,105330.0,0.20886691]
[1750228670401,10.04757303,105340.0,105330.0,0.20886691]
[1750228670615,10.04762044,105340.0,105330.0,0.21836043]
[1750228670846,4.741e-05,105340.0,105330.0,0.39853638]
[1750228672006,0.00104741,105340.0,105330.0,0.40253638]
[1750228674296,0.00104741,105340.0,105330.0,0.59677638]
[1750228676579,0.00104741,105340.0,105330.0,0.40253638]
[1750228676810,0.00104741,105340.0,105330.0,0.59673638]
[1750228680416,4.77078841,105340.0,105330.0,0.59673638]
[1750228684450,4.78028084,105340.0,105330.0,0.59673638]
[1750228685297,4.78977354,105340.0,105330.0,0.59673638]
[1750228685532,4.78977345,105340.0,105330.0,0.59673638]
[1750228686400,5.12977345,105340.0,105330.0,0.59673638]
[1750228687776,5.12028084,105340.0,105330.0,0.59673638]
[1750228689135,5.12977336,105340.0,105330.0,0.59673638]
[1750228690051,5.13926606,105340.0,105330.0,0.59673638]
[1750228690262,5.12977336,105340.0,105330.0,0.59673638]
[1750228691347,5.13926615,105340.0,105330.0,0.59673638]
[1750228691554,5.12977336,105340.0,105330.0,0.59673638]
[1750228691771,5.13926606,105340.0,105330.0,0.59673638]
[1750228693073,5.12977336,105340.0,105330.0,0.59673638]
[1750228693506,5.13926597,105340.0,105330.0,0.59673638]
[1750228694007,5.11078841,105340.0,105330.0,0.59673638]
[1750228695516,0.34104741,105340.0,105330.0,0.59673638]
[1750228699419,0.35053975,105340.0,105330.0,0.59673638]
[1750228699836,0.34104741,105340.0,105330.0,0.59673638]
[1750228707948,0.35053966,105340.0,105330.0,0.59673638]
[1750228709251,0.35053966,105340.0,105330.0,0.59657638]
[1750228709252,0.3695247,105340.0,105330.0,0.59657638]
[1750228709456,0.36003209,105340.0,105330.0,0.59657638]
[1750228710990,0.36952461,105340.0,105330.0,0.44237638]
[1750228711224,0.36952461,105340.0,105330.0,0.59657638]
[1750228711425,0.37901731,105340.0,105330.0,0.59657638]
[1750228711859,0.36952461,105340.0,105330.0,0.59657638]
[1750228712073,0.37901722,105340.0,105330.0,0.59657638]
[1750228712550,0.56887925,105340.0,105330.0,0.21286691]
[1750228712765,0.38851082,105340.0,105330.0,0.42573368]
[1750228714286,0.57837286,105340.0,105330.0,0.41624034]
[1750228714495,5.36482134,105340.0,105330.0,0.40674691]
[1750228714711,5.39182134,105340.0,105330.0,0.40674691]
[1750228714927,5.39182134,105340.0,105330.0,0.41624043]
[1750228715590,5.38232873,105340.0,105330.0,0.39725321]
[1750228715815,10.43232873,105340.0,105330.0,0.39725321]
[1750228716040,10.43232873,105340.0,105330.0,0.40674691]
[1750228716262,10.42283585,105340.0,105330.0,0.40674691]
[1750228717155,10.44553374,105340.0,105330.0,0.3972533]
[1750228717367,10.44553374,105340.0,105330.0,0.40674709]
[1750228717582,10.42283585,105340.0,105330.0,0.40674709]
[1750228717835,10.44553164,105340.0,105330.0,0.40674709]
[1750228718259,10.44553164,105340.0,105330.0,0.004]
[1750228718478,4.98812216,105320.0,105310.0,0.30553112]
[1750228718689,5.00711154,105320.0,105310.0,0.42464167]
[1750228718911,5.00711154,105320.0,105310.0,0.45054167]
[1750228719357,4.9976173,105320.0,105310.0,0.45054167]
[1750228719780,4.9976173,105320.0,105310.0,0.45254167]
[1750228720213,4.9986173,105320.0,105310.0,0.45754167]
[1750228720849,4.9986173,105320.0,105310.0,0.42214644]
[1750228722392,4.9986173,105320.0,105310.0,0.42210644]
[1750228722600,4.98912279,105320.0,105310.0,0.42210644]
[1750228723071,4.98912279,105320.0,105310.0,0.41261112]
[1750228723283,4.98776279,105320.0,105310.0,0.41261112]
[1750228723534,4.98776279,105320.0,105310.0,0.42210653]
[1750228723789,4.97013332,105320.0,105310.0,0.4126113]
[1750228724251,5.01383845,105320.0,105310.0,0.4125713]
[1750228724473,10.06383845,105320.0,105310.0,0.40307562]
[1750228725142,10.03683845,105320.0,105310.0,0.40307562]
[1750228727600,10.01063845,105320.0,105310.0,0.40307562]
[1750228728051,10.01063845,105320.0,105310.0,0.41257121]
[1750228728282,10.01063845,105320.0,105310.0,0.42206671]
[1750228728500,10.01063845,105320.0,105310.0,0.43156212]
[1750228729387,10.02013323,105320.0,105310.0,0.44105744]
[1750228729605,10.03912261,105320.0,105310.0,0.4692569]
[1750228730555,9.83973029,105320.0,105310.0,0.46925645]
[1750228730785,0.001,105320.0,105310.0,0.60593906]
[1750228742846,0.001,105320.0,105310.0,0.89703906]
[1750228745411,0.001,105320.0,105310.0,0.45169906]
[1750228745650,0.001,105320.0,105310.0,0.66201906]
[1750228745884,0.01998839,105320.0,105310.0,0.83007906]
[1750228746118,0.0294829,105320.0,105310.0,0.83015906]
[1750228746335,0.01998839,105320.0,105310.0,0.83015906]
[1750228746764,0.01049406,105320.0,105310.0,0.85625906]
[1750228746997,0.0199883,105320.0,105310.0,0.85625906]
[1750228747244,0.02948272,105320.0,105310.0,0.85625906]
[1750228747703,0.0199883,105320.0,105310.0,0.85625906]
[1750228748144,0.02948272,105320.0,105310.0,0.85625906]
[1750228749484,0.02948263,105320.0,105310.0,0.85625906]
[1750228750134,0.01049415,105320.0,105310.0,0.85621906]
[1750228750355,0.01049406,105320.0,105310.0,0.85621906]
[1750228751438,0.0199883,105320.0,105310.0,0.85621906]
[1750228751647,0.01049406,105320.0,105310.0,0.85621906]
[1750228752338,0.01998821,105320.0,105310.0,0.85621906]
[1750228752562,0.01998821,105320.0,105310.0,0.66221906]
[1750228752792,0.01998821,105320.0,105310.0,0.85617906]
[1750228754161,0.01049406,105320.0,105310.0,0.85617906]
[1750228754388,0.01998821,105320.0,105310.0,0.85617906]
[1750228755684,0.01049406,105320.0,105310.0,0.85617906]
[1750228756155,0.0199883,105320.0,105310.0,0.85617906]
[1750228756580,0.02948272,105320.0,105310.0,0.85617906]
[1750228757014,0.37897741,105320.0,105310.0,0.83718851]
[1750228757246,0.37897741,105320.0,105310.0,0.81108851]
[1750228757713,0.37897741,105320.0,105310.0,0.83678851]
[1750228758592,0.37897732,105320.0,105310.0,0.83678851]
[1750228759284,0.3884721,105320.0,105310.0,0.7003059]
[1750228759508,0.37897732,105320.0,105310.0,0.7274059]
[1750228760377,0.38847201,105320.0,105310.0,0.7274059]
[1750228761052,0.37897732,105320.0,105310.0,0.7274059]
[1750228762435,0.38847201,105320.0,105310.0,0.7274059]
[1750228764131,0.001,105320.0,105310.0,0.83818851]
[1750228767131,0.01049415,105320.0,105310.0,0.83818851]
[1750228767337,0.01049406,105320.0,105310.0,0.83818851]
[1750228768149,0.001,105320.0,105310.0,0.83818851]
[1750228769803,0.01049406,105320.0,105310.0,0.83818851]
[1750228771043,0.02948263,105320.0,105310.0,0.64422851]
[1750228771265,0.02948263,105320.0,105310.0,0.81104851]
[1750228771494,0.03897714,105320.0,105310.0,0.81104851]
[1750228771910,0.01998821,105320.0,105310.0,0.83774851]
[1750228773463,0.02948245,105320.0,105310.0,0.64382851]
[1750228773682,0.02948245,105320.0,105310.0,0.83774851]
[1750228774353,0.01998821,105320.0,105310.0,0.83774851]
[1750228775445,0.02948254,105320.0,105310.0,0.83774851]
[1750228775656,0.01998821,105320.0,105310.0,0.83774851]
[1750228775869,0.02948254,105320.0,105310.0,0.83774851]
[1750228776284,0.01998821,105320.0,105310.0,0.83774851]
[1750228777154,0.02948245,105320.0,105310.0,0.83774851]
[1750228779437,0.001,105320.0,105310.0,0.83774851]
[1750228779651,0.01049415,105320.0,105310.0,0.83774851]
[1750228781178,0.001,105320.0,105310.0,0.83774851]
[1750228781850,0.01049415,105320.0,105310.0,0.83774851]
[1750228784717,0.001,105320.0,105310.0,0.83774851]
[1750228784932,0.01049415,105320.0,105310.0,0.83774851]
[1750228785885,0.001,105320.0,105310.0,0.83774851]
[1750228786532,0.01049406,105320.0,105310.0,0.83774851]
[1750228787223,0.0199883,105320.0,105310.0,0.83774851]
[1750228788093,0.02948263,105320.0,105310.0,0.83774851]
[1750228788310,0.02948254,105320.0,105310.0,0.83774851]
[1750228788749,0.01998821,105320.0,105310.0,0.83774851]
[1750228788965,0.02948245,105320.0,105310.0,0.83774851]
[1750228789632,5.28155996,105330.0,105320.0,0.20888692]
[1750228789836,5.13047122,105330.0,105320.0,0.21838143]
[1750228790947,5.13147122,105330.0,105320.0,0.22038143]
[1750228791589,5.47147122,105330.0,105320.0,0.20139232]
[1750228791909,5.47147122,105330.0,105320.0,0.37458161]
[1750228792121,5.47147122,105330.0,105320.0,0.37558161]
[1750228793629,10.52147122,105330.0,105320.0,0.36608701]
[1750228794260,10.52147122,105330.0,105320.0,0.35659232]
[1750228794390,10.52147122,105330.0,105320.0,0.3660871]
[1750228795074,10.54847122,105330.0,105320.0,0.20637487]
[1750228795891,10.57317122,105330.0,105320.0,0.20637487]
[1750228796107,10.57317122,105330.0,105320.0,0.19688]
[1750228796330,10.57317122,105330.0,105320.0,0.003]
[1750228796550,10.57317122,105330.0,105320.0,0.19688]
[1750228798067,10.57317122,105330.0,105320.0,0.1572]
[1750228798276,0.22439214,105320.0,105310.0,0.00276]
[1750228798539,10.34909214,105320.0,105310.0,0.15696]
[1750228799004,10.34909214,105320.0,105310.0,0.01166581]
[1750228799232,10.34909214,105320.0,105310.0,0.16586581]
[1750228799455,10.34909214,105320.0,105310.0,0.16786581]
[1750228799901,10.35009214,105320.0,105310.0,0.17286581]
[1750228800351,10.34909214,105320.0,105310.0,0.16786581]
[1750228800805,10.34909214,105320.0,105310.0,0.15696]
[1750228801280,10.35009214,105320.0,105310.0,0.15696]
[1750228801740,10.37477742,105320.0,105310.0,0.15796]
[1750228802174,10.37477742,105320.0,105310.0,0.00376]
[1750228802416,10.37477742,105320.0,105310.0,0.15796]
[1750228804850,10.37477742,105320.0,105310.0,0.00376]
[1750228806834,10.32507742,105320.0,105310.0,0.01325577]
[1750228807315,10.33457202,105320.0,105310.0,0.22947125]
[1750228807530,10.33457202,105320.0,105310.0,0.23896684]
[1750228807749,10.32507742,105320.0,105310.0,0.23896684]
[1750228808830,10.32507742,105320.0,105310.0,0.24846234]
[1750228809717,10.32507742,105320.0,105310.0,0.25795766]
[1750228809984,10.32507742,105320.0,105310.0,0.28505766]
[1750228810666,10.1351797,105320.0,105310.0,0.28505766]
[1750228810901,10.16366314,105320.0,105310.0,0.2945528]
[1750228812512,10.50366314,105320.0,105310.0,0.2945528]
[1750228812944,10.50366314,105320.0,105310.0,0.4884328]
[1750228813613,10.51315792,105320.0,105310.0,0.4884328]
[1750228813861,10.51315864,105320.0,105310.0,0.4884328]
[1750228818341,10.70305609,105320.0,105310.0,0.47893766]
[1750228820565,10.70305609,105320.0,105310.0,0.05716]
[1750228820797,10.68406707,105320.0,105310.0,0.22085577]
[1750228821024,10.68406707,105320.0,105310.0,0.41077125]
[1750228821246,10.69847238,105320.0,105310.0,0.18506]
[1750228821474,10.69847238,105320.0,105310.0,0.15796]
[1750228821748,10.72577238,105320.0,105310.0,0.15796]
[1750228821960,10.72577238,105320.0,105310.0,0.00376]
[1750228825267,10.70187238,105320.0,105310.0,0.00376]
[1750228825822,10.72577238,105320.0,105310.0,0.00376]
[1750228826029,10.75413568,105320.0,105310.0,0.00376]
[1750228826441,10.8502849,105320.0,105310.0,0.00376]
[1750228827487,10.85692637,105320.0,105310.0,0.00376]
[1750228827703,10.76077715,105320.0,105310.0,0.00376]
[1750228828818,10.73687715,105320.0,105310.0,0.00376]
[1750228830037,10.73687903,105320.0,105310.0,0.00376]
[1750228830690,10.73687902,105320.0,105310.0,0.00376]
[1750228830830,10.73023568,105320.0,105310.0,0.00376]
[1750228831430,10.8263849,105320.0,105310.0,0.00376]
[1750228832167,10.73023568,105320.0,105310.0,0.00376]
[1750228833025,10.50138938,105320.0,105310.0,0.00376]
[1750228833606,10.50803175,105320.0,105310.0,0.00376]
[1750228833816,10.50138938,105320.0,105310.0,0.00376]
[1750228835066,10.52728938,105320.0,105310.0,0.00376]
[1750228835280,10.53393144,105320.0,105310.0,0.00376]
[1750228835684,10.53393139,105320.0,105310.0,0.00376]
[1750228836134,10.50803139,105320.0,105310.0,0.00376]
[1750228836339,10.53393139,105320.0,105310.0,0.00376]
[1750228836546,10.53393076,105320.0,105310.0,0.00376]
[1750228836770,10.78433252,105320.0,105310.0,0.00376]
[1750228837213,10.43892807,105310.0,105300.0,0.00140069]
[1750228837434,10.46161335,105310.0,105300.0,0.00140069]
[1750228837624,10.51461335,105310.0,105300.0,0.00140069]
[1750228838334,10.51461335,105310.0,105270.0,0.47678694]
[1750228838335,10.11798121,105280.0,105270.0,0.47678694]
[1750228838535,10.11798121,105280.0,105270.0,0.48628596]
[1750228838739,9.91851259,105280.0,105270.0,0.49578471]
[1750228838970,9.9375089,105280.0,105270.0,0.49578471]
[1750228839625,9.93755626,105280.0,105270.0,0.49578471]
[1750228840057,9.93755626,105280.0,105270.0,0.48728596]
[1750228840264,9.93755626,105280.0,105270.0,0.49678471]
[1750228840677,9.93855626,105280.0,105270.0,0.49878471]
[1750228841124,9.93855626,105280.0,105270.0,0.65398471]
[1750228841359,9.93855617,105280.0,105270.0,0.68028471]
[1750228841555,9.94805446,105280.0,105270.0,0.68028471]
[1750228842265,9.94805574,105280.0,105270.0,0.52508489]
[1750228842510,9.91956013,105280.0,105270.0,0.43028471]
[1750228842706,9.9385569,105280.0,105270.0,0.43024489]
[1750228843136,4.85056436,105280.0,105270.0,0.28458364]
[1750228843341,4.85056436,105280.0,105270.0,0.47938364]
[1750228843342,4.86006211,105280.0,105270.0,0.47938364]
[1750228843758,4.86956004,105280.0,105270.0,0.47938364]
[1750228844179,4.87905815,105280.0,105270.0,0.46988489]
[1750228844386,5.05953036,105280.0,105270.0,0.06609938]
[1750228844603,10.10003225,105280.0,105270.0,0.274469]
[1750228844814,10.09053396,105280.0,105270.0,0.21176]
[1750228845442,10.09053396,105280.0,105270.0,0.42012532]
[1750228845654,10.09053396,105280.0,105270.0,0.0566]